[Event "74th PGNiG TERMIKA POL-ch Women 2022"]
[Site "Kruszwica"]
[Date "2022.05.17"]
[Round "9.4"]
[White "Socko, Monika"]
[Black "Zawadzka, Jolanta"]
[Result "1-0"]
[ECO "D37"]
[WhiteElo "2384"]
[BlackElo "2409"]
[Annotator "TA"]
[PlyCount "177"]
[EventDate "2022.05.09"]
[EventType "tourn"]
[EventCountry "POL"]
[SourceTitle "playchess.com"]
[Source "ChessBase"]
[SourceQuality "1"]
[TimeControl "40/5400+30:1800+30"]

{[%evp 19,177,-2,10,-19,-13,-24,-10,-14,0,-29,-30,-21,-16,-32,-22,-36,-33,-26,-40,-31,-46,-47,-20,-39,-31,-27,-9,-12,-7,-20,0,-1,0,-8,0,0,0,-19,0,-97,-96,-89,-104,-86,-75,-140,-134,-151,-151,-133,-106,-106,-106,-106,-106,-106,-106,-106,-106,-387,-106,-106,-106,-106,0,-106,-106,-106,-106,-106,-106,-106,-106,-106,-106,-106,-106,-106,-106,-106,-106,-106,0,0,0,0,0,0,0,0,0,0,0,0,0,0,0,0,0,0,0,0,0,0,0,0,0,0,0,0,0,0,0,0,0,0,0,0,0,-329,0,0,0,0,0,0,0,0,0,0,0,0,0,0,0,0,0,0,21,0,51,83,12836,12836,12837,12838,12838,12838,12840,12840,12839,12839,27999,27999,27999,27999,27999,27999,27999,27999]} 1. d4 {[%emt 0:00:02]} d5 {[%emt 0:00:07]} 2. c4 {[%emt 0:00:03]} e6 {[%emt 0:00:04]} 3. Nf3 {[%emt 0:00:10]} Nf6 {[%emt 0:00:05]} 4. Nc3 {[%emt 0:00:10]} dxc4 {[%emt 0:00:06]} 5. e3 {[%emt 0:00:55]} a6 {[%emt 0:00:06]} 6. Bxc4 {[%emt 0:01:57]} b5 {[%emt 0:00:06]} 7. Bb3 {[%emt 0:00:26]} c5 {[%emt 0:01:03]} 8. O-O {[%emt 0:00:17]} Bb7 {[%emt 0:00:17]} 9. Qe2 {[%emt 0:10:25]} Nbd7 {[%emt 0:00:30]} 10. Rd1 {[%emt 0:01:10]} Qc7 {[%emt 0:03:01] is more profitable than 10...Qb8 at the moment.} 11. h3 {[%emt 0:11:12] D29: Queen's Gambit Accepted: Classical main line: 7 Qe2 with early ...Nbd7.} Be7 {[%emt 0:07:36]} 12. Bd2 {[%emt 0:03:02]} O-O {[%emt 0:01:42]} 13. Rac1 {[%emt 0:01:55] The position is equal.} Qb6 {[%emt 0:14:08]} 14. Be1 {[%emt 0:01:10]} Rfd8 {[%emt 0:04:38]} 15. Bc2 {[%emt 0:09:13]} h6 {[%emt 0:05:50]} 16. Bb1 {[%emt 0:12:17]} Rac8 {[%emt 0:09:52]} 17. a3 {[%emt 0:02:29] [#]} cxd4 $146 {[%emt 0:02:21]} ({Predecessor:} 17... Ba8 18. Ne5 cxd4 19. exd4 Nxe5 20. dxe5 Nd5 21. Ne4 Nf4 22. Qg4 Ng6 23. Bc3 Rxd1+ 24. Rxd1 {1-0 (38) Palchuk,A (2174)-Maly,A (2370) Chess.com INT 2021}) 18. Nxd4 {[%emt 0:11:17]} Ne5 {[%emt 0:00:41]} 19. Ba2 {[%emt 0:03:25]} Bc5 {[%emt 0:06:33]} 20. Nb3 {[%emt 0:03:26]} Bf8 {[%emt 0:01:01]} 21. Rxd8 {[%emt 0:03:53]} Rxd8 {[%emt 0:00:08]} 22. Rd1 {[%emt 0:00:30] Against Nd3} Nc4 {[%emt 0:09:26]} 23. Rxd8 {[%emt 0:01:25]} Qxd8 $40 {[%emt 0:01:17][%mdl 128] White needs to defend precisely.} 24. Nd4 {[%emt 0:00:19]} e5 {[%emt 0:03:49]} 25. Nf5 {[%emt 0:01:06]} g6 {[%emt 0:00:15]} (25... Bc8 $5 {[%cal Rc8f5]} 26. e4 Be6 $11) 26. Ng3 {[%emt 0:00:46]} Qb6 {[%emt 0:00:48]} 27. Bxc4 {[%emt 0:07:04]} bxc4 {[%emt 0:00:18]} 28. e4 {[%emt 0:00:02]} h5 {[%emt 0:07:46]} 29. Nd5 {[%emt 0:04:11]} (29. Nf1 $11) 29... Nxd5 $17 {[%emt 0:01:55]} 30. exd5 {[%emt 0:00:02]} Qd4 {[%emt 0:01:26]} (30... Bxd5 $6 31. Qxe5 Qd6 32. Qg5 $11) 31. Ne4 {[%emt 0:06:42]} Bg7 {[%emt 0:00:30] Inhibits Nf6+.} (31... Bxd5 $2 32. Nf6+ Kg7 33. Bc3 Kxf6 34. Bxd4 exd4 35. Qe8 $18) 32. Nc3 {[%emt 0:01:55]} (32. Bc3 $142 Qxd5 33. f3) 32... Bxd5 {[%emt 0:00:20]} 33. Nxd5 {[%emt 0:00:27]} Qxd5 {[%emt 0:00:02][%mdl 4096] Endgame KQB-KQB} 34. Bc3 {[%emt 0:00:05]} e4 {[%emt 0:04:43]} 35. Bxg7 {[%emt 0:00:05]} Kxg7 {[%emt 0:00:04] KQ-KQ} 36. Qe3 {[%emt 0:00:11]} Qd3 {[%emt 0:04:00] And now ...Qxe3 would win.} 37. Qb6 {[%emt 0:00:12]} a5 {[%emt 0:01:51]} 38. Kh2 {[%emt 0:03:31]} Qd2 {[%emt 0:04:13]} 39. Kg1 $2 {[%emt 0:01:36][%mdl 8192]} (39. a4 $17) 39... h4 $2 {[%emt 0:05:06]} (39... a4 $1 $19 {and Black stays clearly on top.} 40. g4 hxg4 41. hxg4 Qd1+ 42. Kh2 Qxg4 43. Qd4+ Kh6 44. Qxc4 Qh5+ 45. Kg2 Qf3+ 46. Kg1 Qd1+ 47. Kg2 f5) 40. a4 {[%emt 0:00:00]} Qd1+ {[%emt 0:00:00]} 41. Kh2 {[%emt 0:00:32]} Qd2 {[%emt 0:08:09]} (41... Qxa4 $6 42. Qd4+ f6 43. Qa7+ Kf8 44. Qb6 $11) 42. Kg1 $1 {[%emt 0:00:05]} Qc1+ {[%emt 0:04:15]} 43. Kh2 {[%emt 0:00:04] [#]} Qf4+ $1 {[%emt 0:00:03]} 44. Kg1 {[%emt 0:00:22]} Qf6 {[%emt 0:00:05] Against Qd4} 45. Qc5 {[%emt 0:02:40]} Qxb2 {[%emt 0:01:32]} 46. Qxc4 {[%emt 0:01:38]} Qb4 {[%emt 0:00:05]} 47. Qc2 {[%emt 0:00:08]} Qd4 {[%emt 0:00:13]} 48. Qb3 {[%emt 0:01:07]} Qd2 {[%emt 0:02:12]} 49. Qb5 {[%emt 0:03:55]} Kh6 {[%emt 0:05:05] Hoping for ...Qe1+.} 50. Qe5 {[%emt 0:06:36]} f5 {[%emt 0:02:48]} (50... Qe1+ $17 51. Kh2 Qxf2 52. Qxe4 f6) 51. Qc5 {[%emt 0:05:42]} Kh5 {[%emt 0:00:42]} ({Reject} 51... Qd1+ 52. Kh2 $15) 52. Qa7 {[%emt 0:04:45]} Qd1+ {[%emt 0:00:06]} 53. Kh2 {[%emt 0:00:01]} Qd6+ {[%emt 0:00:06]} 54. Kg1 {[%emt 0:00:30]} Qe5 {[%emt 0:06:12]} 55. Qh7+ {[%emt 0:00:08]} Kg5 {[%emt 0:00:02]} 56. Qd7 {[%emt 0:00:10]} Kh6 {[%emt 0:04:51]} 57. Qd8 {[%emt 0:00:41]} Qa1+ {[%emt 0:00:49]} 58. Kh2 {[%emt 0:00:01]} Qe5+ {[%emt 0:00:02]} 59. Kg1 {[%emt 0:00:00]} f4 {[%emt 0:00:28]} 60. Qxh4+ {[%emt 0:04:19]} Kg7 {[%emt 0:00:02]} 61. Qg4 {[%emt 0:00:57]} e3 {[%emt 0:00:19]} 62. fxe3 {[%emt 0:00:05]} fxe3 {[%emt 0:00:19]} 63. Kf1 {[%emt 0:05:08]} Qb2 {[%emt 0:00:11][%csl Ge3][%cal Rb2f2]} 64. Qe2 {[%emt 0:00:17] Against Qf2+} Qc3 {[%emt 0:00:33]} 65. g4 {[%emt 0:00:41]} Qd4 {[%emt 0:00:37]} 66. Kg2 {[%emt 0:00:24]} g5 {[%emt 0:01:08]} 67. Kf1 {[%emt 0:00:54]} Qe4 {[%emt 0:01:11][%cal Re4h1]} (67... Qxa4 $5 68. Qb2+ (68. Qxe3 Qf4+ 69. Ke2 Qxe3+ 70. Kxe3 a4 71. h4 a3 72. hxg5 a2 73. Kd4 a1=Q+ 74. Kc4 Kg6 75. Kd5 Qc3 76. Ke4 Kxg5 77. Kd5 Kxg4 78. Ke6 Qd4 79. Kf7 Qe5 80. Kg8 Kf5 81. Kh7 Kf6 82. Kh8 Kf7+ 83. Kh7 Qh5#) 68... Kf7 $15) 68. Kg1 {[%emt 0:00:39] Prevents Qh1+.} Kh7 {[%emt 0:00:33]} 69. Kh2 $2 {[%emt 0:00:21][%mdl 8192]} (69. Qe1 $11 {and White is okay.}) 69... Kg8 $2 {[%emt 0:00:35]} ({Black should try} 69... Qxa4 $19 70. h4 Qb3 71. hxg5 Kg6) 70. Kg1 $1 $11 {[%emt 0:00:50]} Kf8 {[%emt 0:00:17]} 71. Qe1 {[%emt 0:00:51]} Qe5 {[%emt 0:01:36]} 72. Kg2 {[%emt 0:00:24]} Ke7 {[%emt 0:00:23] ...Qd5+ is the strong threat.} 73. Qe2 {[%emt 0:00:26]} Qd4 {[%emt 0:00:43]} 74. Kg3 {[%emt 0:00:28]} Kd8 {[%emt 0:00:42]} 75. Kg2 {[%emt 0:00:33]} Kc7 {[%emt 0:00:27]} 76. Qc2+ {[%emt 0:00:18]} Kd6 {[%emt 0:00:53]} 77. Qg6+ {[%emt 0:00:38]} Kc5 {[%emt 0:01:03] ( -> ...Qd2+)} 78. Qxg5+ {[%emt 0:00:18]} Kc4 {[%emt 0:00:06] Strongly threatening ...Qd2+.} (78... Qd5+ 79. Qxd5+ Kxd5 80. Kf3 Kd4 81. Ke2 Ke5 82. Kxe3 Kf6 83. h4) 79. Qb5+ {[%emt 0:00:38]} Kc3 {[%emt 0:00:02]} 80. Kf3 {[%emt 0:00:50]} ({Don't play} 80. Qxa5+ Kd3 81. Qf5+ Kd2 $11) 80... Qd3 $2 {[%emt 0:02:04][%mdl 8192]} (80... Kc2 $16 81. Qxa5 Qh8 82. Qf5+ Kd2 83. Qd5+ Kc3 84. Qc5+ Kb2 85. Qb4+ Ka2) 81. Qxa5+ $18 {[%emt 0:01:06]} Kc2 {[%emt 0:00:21] [#]} 82. Qe1 $1 {[%emt 0:00:18]} Qd5+ {[%emt 0:00:44]} 83. Kxe3 {[%emt 0:00:28]} Qe5+ {[%emt 0:00:09]} 84. Kf2 {[%emt 0:00:01]} Qh2+ {[%emt 0:00:09]} 85. Kf3 {[%emt 0:00:13]} Qxh3+ {[%emt 0:00:26]} 86. Qg3 {[%emt 0:00:08] White mates.} Qh6 {[%emt 0:00:17]} 87. Qf2+ {[%emt 0:00:38]} Kd3 {[%emt 0:00:22]} 88. Qe2+ {[%emt 0:00:10]} Kd4 {[%emt 0:00:27]} 89. Qe4+ {[%emt 0:00:04] What a bad dream for Black.  Weighted Error Value: White=0.19 (very precise) /Black=0.20 (precise)} 1-0

[Event "74th PGNiG TERMIKA POL-ch Women 2022"]
[Site "Kruszwica"]
[Date "2022.05.17"]
[Round "9.5"]
[White "Malicka, Maria"]
[Black "Rudzinska, Michalina"]
[Result "1/2-1/2"]
[ECO "B50"]
[WhiteElo "2377"]
[BlackElo "2236"]
[Annotator "TA"]
[PlyCount "115"]
[EventDate "2022.05.09"]
[EventType "tourn"]
[EventCountry "POL"]
[SourceTitle "playchess.com"]
[Source "ChessBase"]
[SourceQuality "1"]
[TimeControl "40/5400+30:1800+30"]

{[%evp 11,115,0,3,0,13,6,23,2,21,16,21,16,17,14,18,14,14,20,22,32,40,25,28,29,38,16,31,27,44,32,33,12,65,65,66,28,56,63,89,16,26,27,18,25,14,10,7,4,8,8,5,4,45,41,43,44,58,38,58,61,58,60,59,52,64,64,69,63,75,72,78,68,70,45,82,77,67,38,41,41,52,18,19,13,13,13,13,13,20,0,0,0,0,0,0,0,0,0,0,0,0,0,0,0,0,0]} 1. e4 {[%emt 0:00:02]} c5 {[%emt 0:00:06]} 2. Nf3 {[%emt 0:00:04]} d6 {[%emt 0:00:07]} 3. c3 {[%emt 0:00:15]} Nf6 {[%emt 0:00:09]} 4. Be2 {[%emt 0:00:04]} g6 {[%emt 0:00:16]} 5. O-O {[%emt 0:00:10]} Bg7 {[%emt 0:00:10]} 6. Bb5+ {[%emt 0:00:10]} Nc6 {[%emt 0:00:09][%cal Bb8c6,Bc6e5,Be5f3][%mdl 32]} 7. Re1 {[%emt 0:00:09] B50: Sicilian: 2...d6, Miscellaneous.} Bd7 {[%emt 0:06:43]} 8. d4 {[%emt 0:07:31]} a6 {[%emt 0:01:01]} 9. Bf1 {[%emt 0:08:59] Threatening e5. White has an edge.} Bg4 {[%emt 0:02:51] [#]} 10. d5 $146 {[%emt 0:04:59]} ({Predecessor:} 10. h3 Bxf3 11. gxf3 cxd4 12. cxd4 e5 13. dxe5 dxe5 14. Be3 Nd4 15. Nc3 O-O 16. Bg2 Rc8 17. Rc1 {1-0 (41) Schmidt,D (2022)-Margraf,D (2265) Verden 2016}) 10... Ne5 {[%emt 0:02:18]} 11. Nbd2 {[%emt 0:00:08]} b5 {[%emt 0:03:37]} 12. h3 {[%emt 0:05:12]} Nxf3+ {[%emt 0:00:11]} 13. Nxf3 {[%emt 0:00:04]} Bxf3 {[%emt 0:00:49]} 14. Qxf3 {[%emt 0:00:07]} O-O {[%emt 0:00:27]} 15. Bg5 {[%emt 0:06:51]} h6 {[%emt 0:01:23]} 16. Bf4 {[%emt 0:01:31]} Nd7 {[%emt 0:01:28]} 17. Qe3 {[%emt 0:04:34]} Kh7 {[%emt 0:00:43]} 18. h4 {[%emt 0:00:14]} b4 {[%emt 0:09:04]} 19. cxb4 {[%emt 0:03:47]} cxb4 {[%emt 0:00:14]} 20. Qd2 {[%emt 0:00:07]} Qa5 {[%emt 0:04:38]} 21. h5 {[%emt 0:10:47]} Rfc8 {[%emt 0:04:57]} (21... g5 $11 22. Be3 Nc5) 22. hxg6+ $14 {[%emt 0:01:22]} fxg6 {[%emt 0:00:05]} 23. Rec1 {[%emt 0:10:58]} Nc5 {[%emt 0:06:29]} 24. Qe2 {[%emt 0:06:30]} Na4 {[%emt 0:07:01]} 25. e5 {[%emt 0:04:13]} (25. Qg4 $16 Rf8 26. g3) 25... Qxd5 $11 {[%emt 0:10:16][%cal Rd6e5]} 26. exd6 {[%emt 0:00:47]} (26. Rxc8 {feels hotter.} Rxc8 27. exd6 exd6 28. Qe7) 26... exd6 {[%emt 0:01:03]} 27. Rxc8 {[%emt 0:03:28]} Rxc8 {[%emt 0:00:14]} 28. Qxa6 {[%emt 0:00:10]} Ra8 {[%emt 0:03:12]} 29. Qxd6 {[%emt 0:00:39]} (29. Rd1 {is more complex.} Qxd1 30. Qxa8 Nxb2 31. Qb8) 29... Qxd6 {[%emt 0:00:13]} 30. Bxd6 {[%emt 0:00:04]} Nxb2 {[%emt 0:00:13][%cal Ob4b3]} 31. Re1 {[%emt 0:06:24]} Rxa2 {[%emt 0:04:07]} (31... Bc3 $5 {[%cal Rc3e1]} 32. Re4 (32. Re7+ Kh8 $14) 32... Rxa2 $11) 32. Re7 {[%emt 0:02:02] [#] Black must now prevent Be5.} Kh8 {[%emt 0:01:30]} 33. Bxb4 {[%emt 0:00:36]} Bd4 {[%emt 0:01:28][%cal Od4f2]} 34. Re4 {[%emt 0:07:25]} Bg7 {[%emt 0:02:26]} 35. Re8+ {[%emt 0:00:40]} Kh7 {[%emt 0:00:08]} 36. Re7 {[%emt 0:00:20] [#] Bc3 is the strong threat.} Kh8 {[%emt 0:00:13]} 37. Rd7 {[%emt 0:02:03]} Be5 {[%emt 0:05:42]} 38. g3 {[%emt 0:00:44]} Ra4 {[%emt 0:02:54]} 39. Bd2 {[%emt 0:02:09]} h5 {[%emt 0:02:39]} 40. Bb5 {[%emt 0:00:00]} Ra8 {[%emt 0:00:00]} 41. Kg2 {[%emt 0:05:56]} Rc8 {[%emt 0:08:10]} 42. Rd5 {[%emt 0:06:28]} Bg7 {[%emt 0:01:21]} 43. Bd7 {[%emt 0:01:28]} Rf8 {[%emt 0:05:40]} 44. Bb4 {[%emt 0:01:36]} Rb8 {[%emt 0:01:14]} 45. Bd6 {[%emt 0:00:53]} Ra8 {[%emt 0:01:15]} 46. Bb5 {[%emt 0:02:50]} Rd8 {[%emt 0:00:47] The position is equal.} 47. Rd2 {[%emt 0:01:40]} Kh7 {[%emt 0:00:33]} 48. Bf4 {[%emt 0:00:44]} Rxd2 {[%emt 0:01:04]} 49. Bxd2 {[%emt 0:00:02][%mdl 4096] Endgame KBB-KBN} Nd1 {[%emt 0:00:23]} 50. Kf3 {[%emt 0:01:55]} Bd4 {[%emt 0:00:44]} 51. Be1 {[%emt 0:00:25]} Nc3 {[%emt 0:00:16]} 52. Bc6 {[%emt 0:00:34]} Kg7 {[%emt 0:00:18]} 53. Bd2 {[%emt 0:01:54]} Nd1 {[%emt 0:00:19]} 54. Ke4 {[%emt 0:03:40]} Bxf2 {[%emt 0:01:18]} 55. Ba4 {[%emt 0:00:06]} Bxg3 {[%emt 0:00:07]} 56. Bxd1 {[%emt 0:00:04]} Bh4 {[%emt 0:00:19]} 57. Kf4 {[%emt 0:01:50]} Bf6 {[%emt 0:00:12]} 58. Ke4 {Weighted Error Value: White=0.09 (flawless) /Black=0.07 (flawless)} 1/2-1/2